Workbook

Sheet Bảng tổng hợp kết quả hội đồng
A1: KHOA CÔNG TRÌNH | D1: CỘNG HÒA XÃ HỘI CHỦ NGHĨA VIỆT NAM
A2: HỘI ĐỒNG CÔNG TRÌNH | D2: Độc lập - Tự do - Hạnh phúc
A5: TỔNG HỢP KẾT QUẢ ĐÁNH GIÁ ĐỀ TÀI NCKH CỦA SINH VIÊN TẠI HỘI NGHỊ KHOA HỌC SINH VIÊN CẤP KHOA Năm học …..
A7: Kính gửi: Phòng Khoa học Công nghệ & HTQT
A9: TT | B9: Tên đề tài | C9: SVTH | D9: Lớp | E9: Khoa | F9: GVHD | G9: Bộ môn | H9: Điểm đánh giá các tiêu chí | P9: Ghi chú (đạt giải nhất, nhì, ba nếu có)
H10: Điểm TB | I10: Tổng quan và sự cần thiết của ĐT | J10: Nội dung nghiên cứu | K10: Phương pháp nghiên cứu | L10: Kết quả nghiên cứu | M10: Trình bày báo cáo và trả lời câu hỏi | N10: Đánh giá về khả năng đóng góp của sinh viên | O10: Có sản phẩm công bố
A11: 1 | B11: Nghiên cứu cơ chế phá hoại của tường chắn đất có cốt và đề xuất giải pháp tối ưu | C11: Nguyễn Quang Huy Lương Minh Huyền Bùi Lê Duy Anh Lê Thị Ngọc Đoàn Hữu Hiếu | D11: 63N 64QLXD2 64KTXD3 64KTXD4 64CX3 | E11: Công trình | F11: TS. Đỗ Tuấn Nghĩa TS. Hoàng Thị Lụa | G11: Địa kỹ thuật | H11: =SUM(I11:O11) -> 92.5 | I11: =38/4 -> 9.5 | J11: =78/4 -> 19.5 | K11: =38/4 -> 9.5 | L11: =118/4 -> 29.5 | M11: =38/4 -> 9.5 | N11: =60/4 -> 15 | P11: Đạt giải nhất Đăng ký Vifotec | Q11: =RANK(H11,$H$11:$H$49) -> 1
A12: 2 | B12: Đánh giá khả năng làm việc của kết cấu dầm liên hợp Thép Bê tông cải tiến (Gubeam) | C12: Trần Mạnh Cường Đàm Vĩnh Hưng Vũ Đức Trung | D12: 65CX1 65CX1 65CX1 | E12: Công trình | F12: PGS.TS. Nguyễn Ngọc Thắng TS. Khúc Hồng Vân | G12: Xây dựng DD&CN | H12: 92.4 | I12: 9.5 | J12: 19 | K12: 9.3 | L12: 27.3 | M12: 9 | N12: 13.3 | O12: 5 | P12: Đạt giải nhất Đăng ký Vifotec
A13: 3 | B13: Nghiên cứu tái chế rác thải nhựa làm cốt liệu sản xuất bê tông xanh | C13: Nguyễn Thanh Huyền Phạm Văn An Phạm Thị Hương Giang Vương Tuấn Hải | D13: 64QLXD1 64QLXD1 64QLXD1 64QLXD1 | E13: Công trình | F13: PGS. TS. Nguyễn Quang Phú | G13: Vật liệu xây dựng | H13: 91 | I13: 9.3 | J13: 18.5 | K13: 8.8 | L13: 27.3 | M13: 9.3 | N13: 12.8 | O13: 5 | P13: Đạt giải nhì Đăng ký Vifotec
A14: 4 | B14: Xây dựng thư viện số công trình thủy lợi 3D tích hợp công nghệ thực tế tăng cường (AR) phục vụ giảng dạy và học tập | C14: Nguyễn Đức Hậu Nguyễn Hải Bình Đào Hoàng Hiệp Hoàng Thị Ngọc Lan | D14: 66C2 67C1 67C1 67C1 | E14: Công trình | F14: TS. Lê Văn Thịnh TS. Lê Hồng Phương | G14: Thủy công | H14: =SUM(I14:O14) -> 90.6 | I14: =47/5 -> 9.4 | J14: =97/5 -> 19.4 | K14: =47/5 -> 9.4 | L14: =145/5 -> 29 | M14: =47/5 -> 9.4 | N14: =70/5 -> 14 | P14: Đạt giải nhì | Q14: =RANK(H14,$H$11:$H$49) -> 4
A15: 5 | B15: Nghiên cứu sự suy giảm hệ số thấm do co hẹp lỗ rỗng và ảnh hưởng đến kết quả dự báo lún khi tính toán xử lý nền đất yếu bằng phương pháp cố kết trước | C15: Nguyễn Quốc Quyền Đào Nhật Huy Nguyễn Hữu Nam Đinh Tiến Đạt Nguyễn Đức Hậu | D15: 65CT2 65CT2 65CT2 66GT2 66C2 | E15: Công trình | F15: TS. Hoàng Thị Lụa TS. Đỗ Tuấn Nghĩa | G15: Địa kỹ thuật | H15: =SUM(I15:O15) -> 90.5 | I15: =34/4 -> 8.5 | J15: =70/4 -> 17.5 | K15: =34/4 -> 8.5 | L15: =108/4 -> 27 | M15: =36/4 -> 9 | N15: =60/4 -> 15 | O15: =20/4 -> 5 | P15: Đạt giải nhì | Q15: =RANK(H15,$H$11:$H$49) -> 5
A16: 6 | B16: The impact of BIM and AI digital technology on smart construction projects in Hanoi | C16: Lương Minh Huyền Nguyễn Tuấn Kiệt | D16: 64QLXD2 | E16: Công trình | F16: TS. Lê Minh Thoa TS. Đinh Thế Mạnh | G16: Công nghệ và Quản lý xây dựng; Kinh tế xây dựng; | H16: 90.2 | I16: 9.2 | J16: 18.4 | K16: 9 | L16: 26.8 | M16: 8.6 | N16: 13.2 | O16: 5 | P16: Đạt giải nhì
A17: 7 | B17: Dự đoán và phân tích ảnh hưởng của các tham số đầu vào đến khả năng chịu tải nén đúng tâm của cột thép nhồi bê tông tiết diện chữ nhật bằng mô hình học máy lai. | C17: Phùng Thị Tiên Đào Nhật Huy | D17: 65QLXD2 65CT2 | E17: Công trình | F17: TS. Phạm Văn Thành TS. Phạm Viết Ngọc | G17: Sức bền- Kết cấu | H17: 89.2 | I17: 9.4 | J17: 19.6 | K17: 9.4 | L17: 28 | M17: 9.2 | N17: 13.6 | P17: Đạt giải ba
A18: 8 | B18: Thiết kế và mô phỏng 3D Công trình bến tàu khách Hạ Long bằng Revit: Tiếp cận hiện đại trong trình bày dự án | C18: Bùi Minh Phương Phạm Minh Tâm | D18: 63C2 64C1 | E18: Công trình | F18: TS. Lê Tuấn Hải | G18: Công trình Biển và đường thủy | H18: =SUM(I18:O18) -> 88.5 | I18: =36/4 -> 9 | J18: =72/4 -> 18 | K18: =36/4 -> 9 | L18: =110/4 -> 27.5 | M18: =40/4 -> 10 | N18: =60/4 -> 15 | P18: Đạt giải ba | Q18: =RANK(H18,$H$11:$H$49) -> 8
A19: 9 | B19: Nghiên cứu yêu cầu cấu tạo và các quy định về thiết kế nút dầm - cột khung BTCT chịu động đất | C19: Nguyễn Văn Hưởng Đoàn Hữu Hiếu Trần Thị Trà Mi | D19: 64CX3 64CX3 64CX1 | E19: Công trình | F19: TS. Nguyễn Thị Thanh Thúy | G19: Xây dựng DD&CN | H19: 88 | I19: 9.3 | J19: 19.3 | K19: 9.3 | L19: 27.3 | M19: 9 | N19: 13.8 | P19: Đạt giải ba
A20: 10 | B20: Xây dựng hệ thống thông tin áp dụng BIM hồ chứa nước Ka Pét, tỉnh Lâm Đồng | C20: Đỗ Trọng Đạt Vũ Đình Long La Đức Anh Thái Hồng Quang | D20: 64QLXD3 64QLXD2 64QLXD2 64QLXD3 | E20: Công trình | F20: TS. Trần Văn Toản | G20: Công nghệ và quản lý xây dựng | H20: =SUM(I20:O20) -> 88 | I20: =45/5 -> 9 | J20: =95/5 -> 19 | K20: =46/5 -> 9.2 | L20: =137/5 -> 27.4 | M20: =46/5 -> 9.2 | N20: =71/5 -> 14.2 | P20: Đạt giải ba | Q20: =RANK(H20,$H$11:$H$49) -> 9
A21: 11 | B21: Xây dựng khung ứng dụng mô hình số song sinh cho trạm bơm tiêu Ngọ Xá, Bắc Ninh | C21: Đặng Công Hoàng Long Nguyễn Tùng Dương Hoàng Minh Châu | D21: 64CNK1 65C2 | E21: Công trình | F21: TS. Nguyễn Phương Dung TS. Lê Hồng Phương | G21: Thủy công | H21: =SUM(I21:O21) -> 88 | I21: =36/4 -> 9 | J21: =76/4 -> 19 | K21: =36/4 -> 9 | L21: =110/4 -> 27.5 | M21: =38/4 -> 9.5 | N21: =56/4 -> 14 | P21: Đạt giải ba | Q21: =RANK(H21,$H$11:$H$49) -> 9
A22: 12 | B22: Phân tích ảnh hưởng do xoắn đến các thông số thiết kế cơ bản của kết cấu dầm hộp cong bằng BTCT DUL nhịp liên tục thi công bằng công nghệ lắp hẫng tịnh tiến | C22: Đặng Anh Huy Trịnh Đức Lương Nhữ Lê Minh Đặng Xuân Quý Bùi Đức Nghĩa | D22: 64GT2 64GT2 64GT2 64GT2 64GT2 | E22: Công trình | F22: TS.Đặng Việt Đức | G22: Kỹ thuật xây dựng công trình giao thông | H22: 87.4 | I22: 9 | J22: 19 | K22: 9.4 | L22: 27.6 | M22: 9 | N22: 13.4 | P22: Đạt giải ba
A23: 13 | B23: Nghiên cứu thực nghiệm kết cấu giàn chịu lực thu nhỏ trong nhà máy sản xuất | C23: Trần Thị Thu Vũ Thanh Thịnh Nguyễn Tuấn Anh | D23: 65CX3 65CX3 65CX3 | E23: Công trình | F23: TS. Nguyễn Viết Chuyên | G23: Sức bền- Kết cấu | H23: 87 | I23: 9 | J23: 19 | K23: 9.2 | L23: 27.6 | M23: 9 | N23: 13.2 | P23: Đạt giải ba
A24: 14 | B24: Nghiên cứu ảnh hưởng của độ cứng nút khung đến ứng xử của khung thép nhà công nghiệp | C24: Tăng Trung Kiên Đinh Vũ Hoàng Anh Nguyễn Đức Lâm | D24: 64CX3 64CX2 64CX3 | E24: Công trình | F24: TS. Bùi Sĩ Mười TS. Nguyễn Thị Thanh Thúy | G24: Xây dựng DD&CN | H24: 86 | I24: 8.8 | J24: 18.8 | K24: 9 | L24: 27.3 | M24: 8.8 | N24: 13.3
A25: 15 | B25: Ảnh hưởng hàm lượng hạt xốp EPS đến khối lượng thể tích và cường độ nén của bê tông nhẹ | C25: Lê Thị Yến Nhi Nguyễn Phúc Hưng Khương Nguyễn Tiến Tài | D25: 65QLXD3 65QLXD3 65QLXD3 | E25: Công trình | F25: TS. Hồ Hồng Sao TS. Nguyễn Thu Nga | G25: Công nghệ và Quản lý xây dựng Kết cấu công trình | H25: 85.2 | I25: 8.6 | J25: 18.6 | K25: 9.2 | L25: 27.4 | M25: 8.6 | N25: 12.8
A26: 16 | B26: Nghiên cứu cải tạo đất tan rã bằng enzyme sinh học | C26: Hồ Trọng Ân | D26: 65V1 | E26: Công trình | F26: TS. Nguyễn Quang Tuấn TS. Nguyễn Thị Ngọc Hương | G26: Địa kỹ thuật | H26: =SUM(I26:O26) -> 85.2 | I26: =45/5 -> 9 | J26: =95/5 -> 19 | K26: =34/4 -> 8.5 | L26: =110/4 -> 27.5 | M26: =40/4 -> 10 | N26: =56/5 -> 11.2 | Q26: =RANK(H26,$H$11:$H$49) -> 15
A27: 17 | B27: Nghiên cứu gia cường cột Bê tông cốt thép bằng cách mở rộng tiết diện | C27: Nguyễn Huy Vũ Chu Hữu Thao Nguyễn Anh Quân Nguyễn Như Linh Nguyễn Bá Tùng | D27: 64CX1 64CX2 64CX2 64CX1 64CX1 | E27: Công trình | F27: TS. Đoàn Xuân Quý TS. Phạm Thu Hiền | G27: Xây dựng DD&CN | H27: 85 | I27: 8.6 | J27: 18.6 | K27: 9.2 | L27: 27.2 | M27: 8.6 | N27: 12.8
A28: 18 | B28: Nghiên cứu xây dựng bản đồ số thông số các công trình thủy điện ở Việt Nam | C28: Đoàn Thị Mỹ Tâm An Vân Anh Lê Trọng Thanh Ngô Minh Dương | D28: 65C1 | E28: Công trình | F28: TS. Hoàng Công Tuấn | G28: Thủy điện và năng lượng tái tạo | H28: =SUM(I28:O28) -> 84.6 | I28: =44/5 -> 8.8 | J28: =82/5 -> 16.4 | K28: =42/5 -> 8.4 | L28: =138/5 -> 27.6 | M28: =48/5 -> 9.6 | N28: =69/5 -> 13.8 | Q28: =RANK(H28,$H$11:$H$49) -> 18
A29: 19 | B29: Phát triển ứng dụng WebAR trong trực quan hóa tương tác và phân tích nội lực kết cấu dầm | C29: Ngô Việt Sơn Khương Quang Vinh Dương Phúc Đức Anh Đặng Đức Huy Đoàn Ngọc Minh | D29: 65CNK | E29: Công trình | F29: TS. Lê Hồng Phương | G29: Thủy công | H29: =SUM(I29:O29) -> 84.2 | I29: =45/5 -> 9 | J29: =80/5 -> 16 | K29: =42/5 -> 8.4 | L29: =137/5 -> 27.4 | M29: =48/5 -> 9.6 | N29: =69/5 -> 13.8 | Q29: =RANK(H29,$H$11:$H$49) -> 19
A30: 20 | B30: Ứng dụng các thuật toán trên nền tảng ngôn ngữ R để nghiên cứu xói mòn đất | C30: Phạm Đông Hà Trịnh Thị Phương Đỗ Trung Hậu Nguyễn Đức Hải | D30: 63C1 64C1 64C1 64C1 | E30: Công trình | F30: TS. Lê Văn Thịnh | G30: Thủy công | H30: =SUM(I30:O30) -> 84 | I30: =44/5 -> 8.8 | J30: =81/5 -> 16.2 | K30: =42/5 -> 8.4 | L30: =137/5 -> 27.4 | M30: =48/5 -> 9.6 | N30: =68/5 -> 13.6 | Q30: =RANK(H30,$H$11:$H$49) -> 20
A31: 21 | B31: Ứng xử của Khung bê tông cốt thép có kể đến mô hình nút khung | C31: Hoàng Minh Công Đào Quang Vinh Lê Ngọc Kiên | D31: 64CX2 64CX2 64CX2 | E31: Công trình | F31: TS. Nguyễn Thị Thanh Thúy TS. Bùi Sĩ Mười | G31: Xây dựng DD&CN | H31: 83.8 | I31: 8.5 | J31: 18.3 | K31: 8.5 | L31: 27.5 | M31: 9 | N31: 12
A32: 22 | B32: Nghiên cứu giải pháp cải tạo tràn xả lũ hồ Dụ, phường Kỳ Sơn, tỉnh Phú Thọ. | C32: Ngô Minh Dương An Vân Anh | D32: 65C1 | E32: Công trình | F32: PGS.TS. Lê Xuân Khâm | G32: Thủy công | H32: =SUM(I32:O32) -> 83.8 | I32: =44/5 -> 8.8 | J32: =82/5 -> 16.4 | K32: =42/5 -> 8.4 | L32: =134/5 -> 26.8 | M32: =48/5 -> 9.6 | N32: =69/5 -> 13.8 | Q32: =RANK(H32,$H$11:$H$49) -> 21
A33: 23 | B33: Nghiên cứu đê chắn sóng nổi có trồng cây ngập mặn | C33: Trương Khánh Linh Lê Thị Ngọc Trang Nguyễn Duy Linh Lê Quang Trung | D33: 64CNK2 | E33: Công trình | F33: PGS.TS. Lê Hải Trung TS. Hồ Hồng Sao | G33: Công trình Biển và đường thủy | H33: =SUM(I33:O33) -> 83.8 | I33: =42/5 -> 8.4 | J33: =81/5 -> 16.2 | K33: =41/5 -> 8.2 | L33: =138/5 -> 27.6 | M33: =48/5 -> 9.6 | N33: =69/5 -> 13.8 | Q33: =RANK(H33,$H$11:$H$49) -> 21
A34: 24 | B34: Nghiên cứu xây dựng và phát triển công cụ mô hình tính toán động lực học bờ biển, áp dụng cho bờ biển vùng ĐBSCL | C34: Lê Thị Thu Hiền Đào Phương Hà Trần Thế Quyền Nguyễn Thu Giang Nguyễn Khánh Huyền | D34: 66QLXD2 | E34: Công trình | F34: TS. Phan Khánh Linh TS. Trương Hồng Sơn | G34: Thủy công | H34: =SUM(I34:O34) -> 83.6 | I34: =43/5 -> 8.6 | J34: =81/5 -> 16.2 | K34: =40/5 -> 8 | L34: =138/5 -> 27.6 | M34: =48/5 -> 9.6 | N34: =68/5 -> 13.6 | Q34: =RANK(H34,$H$11:$H$49) -> 24
A35: 25 | B35: Nghiên cứu tác động của đê biển Bình Minh tới cây ngập mặn | C35: Phạm Minh Tâm | D35: 64C1 | E35: Công trình | F35: PGS.TS. Lê Hải Trung TS. Phan Khánh Linh | G35: Công trình Biển và đường thủy | H35: =SUM(I35:O35) -> 83 | I35: =43/5 -> 8.6 | J35: =82/5 -> 16.4 | K35: =41/5 -> 8.2 | L35: =136/5 -> 27.2 | M35: =44/5 -> 8.8 | N35: =69/5 -> 13.8 | Q35: =RANK(H35,$H$11:$H$49) -> 25
A36: 26 | B36: Nghiên cứu giải pháp chống gió bốc mái cho nhà dân vùng ven biển | C36: Lê Hồng Sơn Lê Minh Tuyến Trương Xuân Thành | D36: 64QLXD2 | E36: Công trình | F36: TS. Nguyễn Thị Huệ TS. Đoàn Xuân Quý | G36: Công nghệ và quản lý xây dựng | H36: =SUM(I36:O36) -> 82.8 | I36: =43/5 -> 8.6 | J36: =81/5 -> 16.2 | K36: =40/5 -> 8 | L36: =133/5 -> 26.6 | M36: =48/5 -> 9.6 | N36: =69/5 -> 13.8 | Q36: =RANK(H36,$H$11:$H$49) -> 26
A37: 27 | B37: Nghiên cứu và đánh giá vật liệu xây dựng để sản xuất bê tông chất lượng cao ứng dụng trong xây dựng | C37: Phạm Văn An Phan Bá Khải Đặng Như Quỳnh Đàm Hùng Vũ Tống Thị Hậu | D37: 64QLXD1 64QLXD1 64QLXD1 64QLXD1 64QLXD1 | E37: Công trình | F37: PGS. TS. Nguyễn Quang Phú | G37: Vật liệu xây dựng | H37: 82.4 | I37: 7.8 | J37: 18.3 | K37: 8 | L37: 27.5 | M37: 8.8 | N37: 12
A38: 28 | B38: Nghiên cứu các mô hình tính toán kết cấu vách kép nhà nhiều tầng | C38: Nông Khánh Duy Đào Tuấn Anh Đinh Trung Anh Đinh Vũ Hoàng Anh Đỗ Quang Phú | D38: 64CX2 64CX2 64CX2 64CX2 64CX2 | E38: Công trình | F38: TS. Phạm Thu Hiền TS. Đoàn Xuân Quý | G38: Xây dựng DD&CN | H38: 81.4 | I38: 8 | J38: 17.8 | K38: 8 | L38: 27 | M38: 8.8 | N38: 11.8
A39: 29 | B39: Nghiên cứu ảnh hưởng của mực nước thượng lưu đến tần số dao động riêng của kết cấu bảo vệ mái thượng lưu đập đất bằng BT hoặc BTCT | C39: Nguyễn Quốc Quyền Hoàng Minh Châu Đoàn Thị Mỹ Tâm | D39: 65CT2 65C2 65C1 | E39: Công trình | F39: TS. Nguyễn Thái Hoàng | G39: Sức bền - Kết cấu | H39: =SUM(I39:O39) -> 81.2 | I39: =42/5 -> 8.4 | J39: =80/5 -> 16 | K39: =40/5 -> 8 | L39: =133/5 -> 26.6 | M39: =44/5 -> 8.8 | N39: =67/5 -> 13.4 | Q39: =RANK(H39,$H$11:$H$49) -> 29
A40: 30 | B40: Nghiên cứu sự thay đổi kích thước đến ứng xử của đập đá đổ bê tông bản mặt và đập bê tông đá hộc | C40: Phạm Thị Hương Giang Nguyễn Danh Hoàng Nguyễn Thanh Huyền Trần Nhật Lâm Nguyễn Minh Bảo | D40: 64QLXD1 64QLXD1 64QLXD1 S25-64CX S25-64CX | E40: Công trình | F40: TS. Phạm Nguyễn Hoàng PGS. TS. Nguyễn Quang Phú | G40: Kết cấu công trình Vật liệu xây dựng | H40: 81 | I40: 7.8 | J40: 16 | K40: 7.8 | L40: 25.3 | M40: 8.3 | N40: 10.8 | O40: 5
A41: 31 | B41: Nghiên cứu biện pháp xử lý bục nền cát chảy đáy âu thuyền cụm đầu mối De, dự án Kexim1, tỉnh Thanh Hoá | C41: Phạm Khắc Duy Phạm Minh Quân Mai Trung Hiếu | D41: 63CT1 | E41: Công trình | F41: TS. Mai Lâm Tuấn | G41: Công nghệ và quản lý xây dựng | H41: =SUM(I41:O41) -> 81 | I41: =42/5 -> 8.4 | J41: =80/5 -> 16 | K41: =41/5 -> 8.2 | L41: =134/5 -> 26.8 | M41: =45/5 -> 9 | N41: =63/5 -> 12.6 | Q41: =RANK(H41,$H$11:$H$49) -> 31
A42: 32 | B42: Nghiên cứu ảnh hưởng của bi mô men đối với dầm thép chữ I chịu uốn xoắn | C42: Nguyễn Huy Thịnh Nguyễn Đình Nghĩa Nguyễn Văn Hưởng | D42: 64CX3 64CX3 64CX3 | E42: Công trình | F42: TS. Bùi Sĩ Mười | G42: Xây dựng DD&CN | H42: 80.6 | I42: 7.8 | J42: 17.6 | K42: 8 | L42: 26.6 | M42: 8.8 | N42: 11.8
A43: 33 | B43: Ứng dụng công nghệ cảm biến quan trắc trong giám sát phản ứng kiềm-cốt liệu (ASR) trên kết cấu bê tông | C43: Vũ Hải Hà | D43: 64QLXD2 | E43: Công trình | F43: TS. Nguyễn Thị Huệ | G43: Công nghệ và Quản lý xây dựng | H43: 80.2 | I43: 7.8 | J43: 17.6 | K43: 7.8 | L43: 26.6 | M43: 8.6 | N43: 11.8
A44: 34 | B44: Nghiên cứu giải pháp tiêu thoát cho khu công nghiệp Hòa Ninh-Đà Nẵng | C44: Phạm Quốc Bảo Nguyễn Doãn Tuấn Kiệt | D44: 65C1 S26-65C | E44: Công trình | F44: TS. Nguyễn Văn Sơn | G44: Công nghệ và quản lý xây dựng | H44: =SUM(I44:O44) -> 80 | I44: =41/5 -> 8.2 | J44: =80/5 -> 16 | K44: =40/5 -> 8 | L44: =135/5 -> 27 | M44: =44/5 -> 8.8 | N44: =60/5 -> 12 | Q44: =RANK(H44,$H$11:$H$49) -> 34
A45: 35 | B45: Tính toán thiết kế và xây dựng phương án bố trí mặt bằng công trình bến cảng Sài Gòn kết hợp ứng dụng mô hình 3D Luminon, phục vụ trực quan và giảng dạy | C45: Hoàng Ngọc Huy Lê Đăng Dương | D45: 64C1 64C1 | E45: Công trình | F45: TS. Lê Tuấn Hải | G45: Công trình Biển và đường thủy | H45: =SUM(I45:N45) -> 80 | I45: =34/4 -> 8.5 | J45: =64/4 -> 16 | K45: =34/4 -> 8.5 | L45: =110/4 -> 27.5 | M45: =38/4 -> 9.5 | N45: =40/4 -> 10 | Q45: =RANK(H45,$H$11:$H$49) -> 34
A46: 36 | B46: Ứng dụng khả năng tính toán song song trong xây dựng đường quá trình điều tiết lũ đảm bảo an toàn đập thủy điện | C46: Tô Linh Chi | D46: 66C2 | E46: Công trình | F46: TS. Phan Trần Hồng Long | G46: Thủy điện và năng lượng tái tạo | H46: =SUM(I46:O46) -> 80 | I46: =34/4 -> 8.5 | J46: =62/4 -> 15.5 | K46: =34/4 -> 8.5 | L46: =108/4 -> 27 | M46: =38/4 -> 9.5 | N46: =44/4 -> 11 | Q46: =RANK(H46,$H$11:$H$49) -> 34
A47: 37 | B47: Nghiên cứu tính toán khung kết cấu thép theo TCVN và tiêu chuẩn Hoa Kỳ | C47: Kiều Xuân Hùng Bùi Đình Luyện Nguyễn Văn Đạt Trần Phương Nam Trần Thị Loan | D47: 66CX3 66CX3 64QLXD1 64QLXD1 64QLXD1 | E47: Công trình | F47: TS. Phạm Nguyễn Hoàng | G47: Kết cấu công trình | H47: 78 | I47: 7.4 | J47: 17.2 | K47: 7.8 | L47: 25.6 | M47: 8.4 | N47: 11.6
A48: 38 | B48: Giải pháp thi công cừ chữ C bảo vệ hố móng công trình trong đô thị | C48: Lại Minh Nghĩa | D48: 63CT2 | E48: Công trình | F48: PGS.TS Nguyễn Trọng Tư | G48: Công nghệ và Quản lý xây dựng | H48: 76.4 | I48: 8 | J48: 16.6 | K48: 7.6 | L48: 25.4 | M48: 7.6 | N48: 11.2
A49: 39 | B49: Công nghệ tự động hóa và robot trong xây dựng | C49: Lê Tùng Anh Chu Minh Dũng | D49: 66CX1 66CX1 | E49: Công trình | F49: TS. Tạ Văn Phấn | G49: Xây dựng DD&CN | H49: 75 | I49: 7.2 | J49: 16.6 | K49: 7.6 | L49: 25 | M49: 8 | N49: 10.6
A52: Mỗi Đơn vị đề xuất tối đa 01 giải nhất tham gia xét giải cấp Trường.
A53: Báo cáo đề nghị khoa xét giải cấp Trường: Nghiên cứu cơ chế phá hoại của tường chắn đất có cốt và đề xuất giải pháp tối ưu GVHD: TS. Đỗ Tuấn Nghĩa TS. Hoàng Thị Lụa
B54: THƯ KÝ | K54: CHỦ TỊCH HỘI ĐỒNG
B55: (Ghi rõ họ tên và ký tên) | K55: (Ghi rõ họ tên và ký tên)
